Workbook

Sheet Ершовское с.п красная зона
H1: ООО «Рузский РО» 143500, Московская обл., г. Истра, ул. Московская, д. 48, оф. 37 8 (499) 110-27-53, +7 963 716-95-21, info@ruzskyro.ru ruzskyro.ru
A2: Реестр должников по коммунальной услуге «Обращение с ТКО» с.п Ершовское
A3: Номер лицевого счета по обращению с ТКО | B3: Адрес | H3: Исполнитель | I3: Долг на 01.07.2021
A4: 50004306374 | B4: 143180 | C4: г.о. Одинцовский | D4: Аксиньинский с/о | E4: Мозжинка пос. | F4: 2007-390 | G4: 0 | H4: ООО "Рузский РО" | I4: =VLOOKUP(A4:A279,'[1]Универсальная выгрузка'!$B$96:$T$22204,19,0) -> 13786.43
A5: 50008110372 | B5: 143031 | C5: г.о. Одинцовский | D5: Аксиньино с. | E5: село | F5: 35 | G5: 1 | H5: ООО "Рузский РО" | I5: =VLOOKUP(A5:A288,'[1]Универсальная выгрузка'!$B$96:$T$22204,19,0) -> 6958.51
A6: 50008111129 | B6: 143031 | C6: г.о. Одинцовский | D6: Аксиньино с. | E6: село | F6: 18 | G6: 0 | H6: ООО "Рузский РО" | I6: =VLOOKUP(A6:A290,'[1]Универсальная выгрузка'!$B$96:$T$22204,19,0) -> 2997.5
A7: 50008112570 | B7: 143031 | C7: г.о. Одинцовский | D7: Аксиньино с. | E7: село | F7: 26 | G7: 0 | H7: ООО "Рузский РО" | I7: =VLOOKUP(A7:A291,'[1]Универсальная выгрузка'!$B$96:$T$22204,19,0) -> 4303.67
A8: 50008114144 | B8: 143031 | C8: г.о. Одинцовский | D8: Аксиньино с. | E8: село | F8: 98 | G8: 0 | H8: ООО "Рузский РО" | I8: =VLOOKUP(A8:A292,'[1]Универсальная выгрузка'!$B$96:$T$22204,19,0) -> 3227.49
A9: 50008114440 | B9: 143031 | C9: г.о. Одинцовский | D9: Аксиньино с. | E9: село | F9: 32 | G9: 0 | H9: ООО "Рузский РО" | I9: =VLOOKUP(A9:A294,'[1]Универсальная выгрузка'!$B$96:$T$22204,19,0) -> 9579.72
A10: 50008117410 | B10: 143031 | C10: г.о. Одинцовский | D10: Аксиньино с. | E10: село | F10: 75 | G10: 75/1 | H10: ООО "Рузский РО" | I10: =VLOOKUP(A10:A296,'[1]Универсальная выгрузка'!$B$96:$T$22204,19,0) -> 6958.51
A11: 50008118156 | B11: 143031 | C11: г.о. Одинцовский | D11: Аксиньино с. | E11: село | F11: 26 | G11: 0 | H11: ООО "Рузский РО" | I11: =VLOOKUP(A11:A297,'[1]Универсальная выгрузка'!$B$96:$T$22204,19,0) -> 4303.67
A12: 50008118340 | B12: 143031 | C12: г.о. Одинцовский | D12: Аксиньино с. | E12: село | F12: 34А | G12: 0 | H12: ООО "Рузский РО" | I12: =VLOOKUP(A12:A298,'[1]Универсальная выгрузка'!$B$96:$T$22204,19,0) -> 11717.47
A13: 50008118798 | B13: 143031 | C13: г.о. Одинцовский | D13: Аксиньино с. | E13: село | F13: 2 | G13: 0 | H13: ООО "Рузский РО" | I13: =VLOOKUP(A13:A300,'[1]Универсальная выгрузка'!$B$96:$T$22204,19,0) -> 4286.97
A14: 50008119255 | B14: 143031 | C14: г.о. Одинцовский | D14: Аксиньино с. | E14: село | F14: 62 | G14: 0 | H14: ООО "Рузский РО" | I14: =VLOOKUP(A14:A301,'[1]Универсальная выгрузка'!$B$96:$T$22204,19,0) -> 2997.5
A15: 50008127619 | B15: 143031 | C15: г.о. Одинцовский | D15: Аксиньино с. | E15: село | F15: 116 | G15: 0 | H15: ООО "Рузский РО" | I15: =VLOOKUP(A15:A303,'[1]Универсальная выгрузка'!$B$96:$T$22204,19,0) -> 8544.62
A16: 50008128154 | B16: 143031 | C16: г.о. Одинцовский | D16: Аксиньино с. | E16: село | F16: 106 | G16: 0 | H16: ООО "Рузский РО" | I16: =VLOOKUP(A16:A304,'[1]Универсальная выгрузка'!$B$96:$T$22204,19,0) -> 16860.65
A17: 50008129260 | B17: 143031 | C17: г.о. Одинцовский | D17: Аксиньино с. | E17: село | F17: 4 | G17: 0 | H17: ООО "Рузский РО" | I17: =VLOOKUP(A17:A305,'[1]Универсальная выгрузка'!$B$96:$T$22204,19,0) -> 2917.15
A18: 50008132633 | B18: 143031 | C18: г.о. Одинцовский | D18: Аксиньино с. | E18: село | F18: 6 уч. | G18: 0 | H18: ООО "Рузский РО" | I18: =VLOOKUP(A18:A308,'[1]Универсальная выгрузка'!$B$96:$T$22204,19,0) -> 6958.51
A19: 50008132908 | B19: 143031 | C19: г.о. Одинцовский | D19: Аксиньино с. | E19: село | F19: 86 | G19: 0 | H19: ООО "Рузский РО" | I19: =VLOOKUP(A19:A309,'[1]Универсальная выгрузка'!$B$96:$T$22204,19,0) -> 4335.84
A20: 50008133186 | B20: 143031 | C20: г.о. Одинцовский | D20: Аксиньино с. | E20: село | F20: 16 | G20: 0 | H20: ООО "Рузский РО" | I20: =VLOOKUP(A20:A310,'[1]Универсальная выгрузка'!$B$96:$T$22204,19,0) -> 2537.52
A21: 50008136067 | B21: 143031 | C21: г.о. Одинцовский | D21: Аксиньино с. | E21: ГП-3 | F21: уч.116 | G21: 0 | H21: ООО "Рузский РО" | I21: =VLOOKUP(A21:A313,'[1]Универсальная выгрузка'!$B$96:$T$22204,19,0) -> 13872.39
A22: 50008136187 | B22: 143031 | C22: г.о. Одинцовский | D22: Аксиньино с. | E22: ГП-1 | F22: уч.21 | G22: 0 | H22: ООО "Рузский РО" | I22: =VLOOKUP(A22:A314,'[1]Универсальная выгрузка'!$B$96:$T$22204,19,0) -> 13788.42
A23: 50008140183 | B23: 143031 | C23: г.о. Одинцовский | D23: Аксиньино с. | E23: село | F23: 23 | G23: 0 | H23: ООО "Рузский РО" | I23: =VLOOKUP(A23:A315,'[1]Универсальная выгрузка'!$B$96:$T$22204,19,0) -> 2767.51
A24: 50008142293 | B24: 143031 | C24: г.о. Одинцовский | D24: Аксиньино с. | E24: село | F24: 66 | G24: 0 | H24: ООО "Рузский РО" | I24: =VLOOKUP(A24:A318,'[1]Универсальная выгрузка'!$B$96:$T$22204,19,0) -> 5133.2
A25: 50008148753 | B25: 143031 | C25: г.о. Одинцовский | D25: Аксиньино с. | E25: село | F25: 34 | G25: 0 | H25: ООО "Рузский РО" | I25: =VLOOKUP(A25:A321,'[1]Универсальная выгрузка'!$B$96:$T$22204,19,0) -> 2529.89
A26: 50008151629 | B26: 143031 | C26: г.о. Одинцовский | D26: Аксиньино с. | E26: село | F26: 3 | G26: 0 | H26: ООО "Рузский РО" | I26: =VLOOKUP(A26:A324,'[1]Универсальная выгрузка'!$B$96:$T$22204,19,0) -> 3027.49
A27: 50008152414 | B27: 143031 | C27: г.о. Одинцовский | D27: Аксиньино с. | E27: село | F27: 58А | G27: 0 | H27: ООО "Рузский РО" | I27: =VLOOKUP(A27:A326,'[1]Универсальная выгрузка'!$B$96:$T$22204,19,0) -> 2887.47
A28: 50008154757 | B28: 143031 | C28: г.о. Одинцовский | D28: Аксиньино с. | E28: село | F28: 42 | G28: 0 | H28: ООО "Рузский РО" | I28: =VLOOKUP(A28:A327,'[1]Универсальная выгрузка'!$B$96:$T$22204,19,0) -> 4084.75
A29: 50008157483 | B29: 143031 | C29: г.о. Одинцовский | D29: Аксиньино с. | E29: село | F29: 29 | G29: 0 | H29: ООО "Рузский РО" | I29: =VLOOKUP(A29:A328,'[1]Универсальная выгрузка'!$B$96:$T$22204,19,0) -> 3522.25
A30: 50008158656 | B30: 143031 | C30: г.о. Одинцовский | D30: Аксиньино с. | E30: село | F30: 3 | G30: 0 | H30: ООО "Рузский РО" | I30: =VLOOKUP(A30:A329,'[1]Универсальная выгрузка'!$B$96:$T$22204,19,0) -> 6958.51
A31: 50008159321 | B31: 143031 | C31: г.о. Одинцовский | D31: Аксиньино с. | E31: село | F31: 81Б | G31: 0 | H31: ООО "Рузский РО" | I31: =VLOOKUP(A31:A330,'[1]Универсальная выгрузка'!$B$96:$T$22204,19,0) -> 9062.17
A32: 50008163889 | B32: 143031 | C32: г.о. Одинцовский | D32: Аксиньино с. | E32: село | F32: 104 | G32: А | H32: ООО "Рузский РО" | I32: =VLOOKUP(A32:A332,'[1]Универсальная выгрузка'!$B$96:$T$22204,19,0) -> 14377.18
A33: 50008167040 | B33: 143031 | C33: г.о. Одинцовский | D33: Аксиньино с. | E33: село | F33: 88А | G33: 0 | H33: ООО "Рузский РО" | I33: =VLOOKUP(A33:A333,'[1]Универсальная выгрузка'!$B$96:$T$22204,19,0) -> 2851.96
A34: 50008170580 | B34: 143031 | C34: г.о. Одинцовский | D34: Аксиньино с. | E34: село | F34: 41А | G34: 0 | H34: ООО "Рузский РО" | I34: =VLOOKUP(A34:A335,'[1]Универсальная выгрузка'!$B$96:$T$22204,19,0) -> 2624.63
A35: 50008170710 | B35: 143031 | C35: г.о. Одинцовский | D35: Аксиньино с. | E35: село | F35: 52/2 | G35: 0 | H35: ООО "Рузский РО" | I35: =VLOOKUP(A35:A336,'[1]Универсальная выгрузка'!$B$96:$T$22204,19,0) -> 1280.45
A36: 50008171946 | B36: 143031 | C36: г.о. Одинцовский | D36: Аксиньино с. | E36: село | F36: 48 | G36: 0 | H36: ООО "Рузский РО" | I36: =VLOOKUP(A36:A338,'[1]Универсальная выгрузка'!$B$96:$T$22204,19,0) -> 6369.12
A37: 50008174880 | B37: 143031 | C37: г.о. Одинцовский | D37: Аксиньино с. | E37: село | F37: 87 | G37: 0 | H37: ООО "Рузский РО" | I37: =VLOOKUP(A37:A340,'[1]Универсальная выгрузка'!$B$96:$T$22204,19,0) -> 3680.16
A38: 50008193280 | B38: 143031 | C38: г.о. Одинцовский | D38: Аксиньино с. | E38: село | F38: 38А | G38: 0 | H38: ООО "Рузский РО" | I38: =VLOOKUP(A38:A347,'[1]Универсальная выгрузка'!$B$96:$T$22204,19,0) -> 3968.47
A39: 50008196820 | B39: 143031 | C39: г.о. Одинцовский | D39: Аксиньино с. | E39: село | F39: 51Б | G39: 0 | H39: ООО "Рузский РО" | I39: =VLOOKUP(A39:A348,'[1]Универсальная выгрузка'!$B$96:$T$22204,19,0) -> 2997.5
A40: 50008200354 | B40: 143031 | C40: г.о. Одинцовский | D40: Аксиньино с. | E40: село | F40: 42А | G40: 0 | H40: ООО "Рузский РО" | I40: =VLOOKUP(A40:A349,'[1]Универсальная выгрузка'!$B$96:$T$22204,19,0) -> 4696.83
A41: 50008200851 | B41: 143031 | C41: г.о. Одинцовский | D41: Аксиньино с. | E41: село | F41: 78 | G41: 0 | H41: ООО "Рузский РО" | I41: =VLOOKUP(A41:A350,'[1]Универсальная выгрузка'!$B$96:$T$22204,19,0) -> 2897.79
A42: 50008200925 | B42: 143031 | C42: г.о. Одинцовский | D42: Аксиньино с. | E42: село | F42: 61 | G42: 0 | H42: ООО "Рузский РО" | I42: =VLOOKUP(A42:A351,'[1]Универсальная выгрузка'!$B$96:$T$22204,19,0) -> 6958.51
A43: 50008201012 | B43: 143031 | C43: г.о. Одинцовский | D43: Аксиньино с. | E43: село | F43: 114 | G43: 0 | H43: ООО "Рузский РО" | I43: =VLOOKUP(A43:A352,'[1]Универсальная выгрузка'!$B$96:$T$22204,19,0) -> 4183.75
A44: 50008204359 | B44: 143031 | C44: г.о. Одинцовский | D44: Аксиньино с. | E44: село | F44: 23 | G44: 0 | H44: ООО "Рузский РО" | I44: =VLOOKUP(A44:A356,'[1]Универсальная выгрузка'!$B$96:$T$22204,19,0) -> 6958.51
A45: 50008204623 | B45: 143031 | C45: г.о. Одинцовский | D45: Аксиньино с. | E45: село | F45: 51 | G45: 0 | H45: ООО "Рузский РО" | I45: =VLOOKUP(A45:A357,'[1]Универсальная выгрузка'!$B$96:$T$22204,19,0) -> 5117.31
A46: 50008207818 | B46: 143031 | C46: г.о. Одинцовский | D46: Аксиньино с. | E46: село | F46: 68Б | G46: Б | H46: ООО "Рузский РО" | I46: =VLOOKUP(A46:A358,'[1]Универсальная выгрузка'!$B$96:$T$22204,19,0) -> 10396.58
A47: 50008209029 | B47: 143031 | C47: г.о. Одинцовский | D47: Аксиньино с. | E47: село | F47: 18 | G47: 0 | H47: ООО "Рузский РО" | I47: =VLOOKUP(A47:A359,'[1]Универсальная выгрузка'!$B$96:$T$22204,19,0) -> 5856.73
A48: 50008209540 | B48: 143031 | C48: г.о. Одинцовский | D48: Аксиньино с. | E48: село | F48: 13 | G48: А | H48: ООО "Рузский РО" | I48: =VLOOKUP(A48:A360,'[1]Универсальная выгрузка'!$B$96:$T$22204,19,0) -> 6958.51
A49: 50008211282 | B49: 143031 | C49: г.о. Одинцовский | D49: Аксиньино с. | E49: село | F49: 102 | G49: 0 | H49: ООО "Рузский РО" | I49: =VLOOKUP(A49:A361,'[1]Универсальная выгрузка'!$B$96:$T$22204,19,0) -> 3687.47
A50: 50008212247 | B50: 143031 | C50: г.о. Одинцовский | D50: Аксиньино с. | E50: село | F50: 14 | G50: 3 | H50: ООО "Рузский РО" | I50: =VLOOKUP(A50:A362,'[1]Универсальная выгрузка'!$B$96:$T$22204,19,0) -> 6958.51
A51: 50008217340 | B51: 143031 | C51: г.о. Одинцовский | D51: Аксиньино с. | E51: село | F51: 22 | G51: 0 | H51: ООО "Рузский РО" | I51: =VLOOKUP(A51:A365,'[1]Универсальная выгрузка'!$B$96:$T$22204,19,0) -> 6958.51
A52: 50008218506 | B52: 143031 | C52: г.о. Одинцовский | D52: Аксиньино с. | E52: село | F52: 19 | G52: 0 | H52: ООО "Рузский РО" | I52: =VLOOKUP(A52:A366,'[1]Универсальная выгрузка'!$B$96:$T$22204,19,0) -> 4574.22
A53: 50008223111 | B53: 143031 | C53: г.о. Одинцовский | D53: Аксиньино с. | E53: село | F53: 2 | G53: 0 | H53: ООО "Рузский РО" | I53: =VLOOKUP(A53:A368,'[1]Универсальная выгрузка'!$B$96:$T$22204,19,0) -> 2623.8
A54: 50008224620 | B54: 143031 | C54: г.о. Одинцовский | D54: Аксиньино с. | E54: село | F54: 102 | G54: 0 | H54: ООО "Рузский РО" | I54: =VLOOKUP(A54:A369,'[1]Универсальная выгрузка'!$B$96:$T$22204,19,0) -> 3932.75
A55: 50008224820 | B55: 143031 | C55: г.о. Одинцовский | D55: Аксиньино с. | E55: село | F55: 20 | G55: 0 | H55: ООО "Рузский РО" | I55: =VLOOKUP(A55:A370,'[1]Универсальная выгрузка'!$B$96:$T$22204,19,0) -> 3416.29
A56: 50008225408 | B56: 143031 | C56: г.о. Одинцовский | D56: Аксиньино с. | E56: село | F56: 5А | G56: 0 | H56: ООО "Рузский РО" | I56: =VLOOKUP(A56:A372,'[1]Универсальная выгрузка'!$B$96:$T$22204,19,0) -> 13685.69
A57: 50008230694 | B57: 143031 | C57: г.о. Одинцовский | D57: Аксиньино с. | E57: село | F57: 97 | G57: 97а | H57: ООО "Рузский РО" | I57: =VLOOKUP(A57:A373,'[1]Универсальная выгрузка'!$B$96:$T$22204,19,0) -> 2537.52
A58: 50008231271 | B58: 143031 | C58: г.о. Одинцовский | D58: Аксиньино с. | E58: село | F58: 68 | G58: 0 | H58: ООО "Рузский РО" | I58: =VLOOKUP(A58:A374,'[1]Универсальная выгрузка'!$B$96:$T$22204,19,0) -> 1858.91
A59: 50008238950 | B59: 143031 | C59: г.о. Одинцовский | D59: Аксиньино с. | E59: село | F59: 14 | G59: 0 | H59: ООО "Рузский РО" | I59: =VLOOKUP(A59:A378,'[1]Универсальная выгрузка'!$B$96:$T$22204,19,0) -> 3457.28
A60: 50008239104 | B60: 143031 | C60: г.о. Одинцовский | D60: Аксиньино с. | E60: село | F60: 33Б | G60: 0 | H60: ООО "Рузский РО" | I60: =VLOOKUP(A60:A379,'[1]Универсальная выгрузка'!$B$96:$T$22204,19,0) -> 8027.07
A61: 50008239182 | B61: 143031 | C61: г.о. Одинцовский | D61: Аксиньино с. | E61: село | F61: 90,90А | G61: 0 | H61: ООО "Рузский РО" | I61: =VLOOKUP(A61:A380,'[1]Универсальная выгрузка'!$B$96:$T$22204,19,0) -> 2530.52
A62: 50008239312 | B62: 143031 | C62: г.о. Одинцовский | D62: Аксиньино с. | E62: село | F62: 8А | G62: 0 | H62: ООО "Рузский РО" | I62: =VLOOKUP(A62:A381,'[1]Универсальная выгрузка'!$B$96:$T$22204,19,0) -> 6958.51
A63: 50008241449 | B63: 143031 | C63: г.о. Одинцовский | D63: Аксиньино с. | E63: село | F63: 30 | G63: 0 | H63: ООО "Рузский РО" | I63: =VLOOKUP(A63:A383,'[1]Универсальная выгрузка'!$B$96:$T$22204,19,0) -> 2633.59
A64: 50008247190 | B64: 143031 | C64: г.о. Одинцовский | D64: Аксиньино с. | E64: село | F64: 49 | G64: 0 | H64: ООО "Рузский РО" | I64: =VLOOKUP(A64:A384,'[1]Универсальная выгрузка'!$B$96:$T$22204,19,0) -> 3520.08
A65: 50008247345 | B65: 143031 | C65: г.о. Одинцовский | D65: Аксиньино с. | E65: село | F65: 15 | G65: 0 | H65: ООО "Рузский РО" | I65: =VLOOKUP(A65:A385,'[1]Универсальная выгрузка'!$B$96:$T$22204,19,0) -> 6958.51
A66: 50008247909 | B66: 143031 | C66: г.о. Одинцовский | D66: Аксиньино с. | E66: село | F66: 23 | G66: А | H66: ООО "Рузский РО" | I66: =VLOOKUP(A66:A386,'[1]Универсальная выгрузка'!$B$96:$T$22204,19,0) -> 5379.18
A67: 50008248349 | B67: 143031 | C67: г.о. Одинцовский | D67: Аксиньино с. | E67: село | F67: 92 | G67: 0 | H67: ООО "Рузский РО" | I67: =VLOOKUP(A67:A387,'[1]Универсальная выгрузка'!$B$96:$T$22204,19,0) -> 6958.51
A68: 50008248677 | B68: 143031 | C68: г.о. Одинцовский | D68: Аксиньино с. | E68: село | F68: уч.40А | G68: 0 | H68: ООО "Рузский РО" | I68: =VLOOKUP(A68:A388,'[1]Универсальная выгрузка'!$B$96:$T$22204,19,0) -> 8528.4
A69: 50008249060 | B69: 143031 | C69: г.о. Одинцовский | D69: Аксиньино с. | E69: село | F69: 44А | G69: 0 | H69: ООО "Рузский РО" | I69: =VLOOKUP(A69:A389,'[1]Универсальная выгрузка'!$B$96:$T$22204,19,0) -> 16843.73
A70: 50008254078 | B70: 143031 | C70: г.о. Одинцовский | D70: Аксиньино с. | E70: село | F70: 16 | G70: 0 | H70: ООО "Рузский РО" | I70: =VLOOKUP(A70:A390,'[1]Универсальная выгрузка'!$B$96:$T$22204,19,0) -> 3219.86
A71: 50008254543 | B71: 143031 | C71: г.о. Одинцовский | D71: Аксиньино с. | E71: село | F71: 93 | G71: 0 | H71: ООО "Рузский РО" | I71: =VLOOKUP(A71:A391,'[1]Универсальная выгрузка'!$B$96:$T$22204,19,0) -> 2938.36
A72: 50008255829 | B72: 143031 | C72: г.о. Одинцовский | D72: Аксиньино с. | E72: село | F72: 65 | G72: 0 | H72: ООО "Рузский РО" | I72: =VLOOKUP(A72:A392,'[1]Универсальная выгрузка'!$B$96:$T$22204,19,0) -> 2977.21
A73: 50008261389 | B73: 143031 | C73: г.о. Одинцовский | D73: Аксиньино с. | E73: село | F73: 39/1 | G73: 0 | H73: ООО "Рузский РО" | I73: =VLOOKUP(A73:A393,'[1]Универсальная выгрузка'!$B$96:$T$22204,19,0) -> 15277.81
A74: 50008261830 | B74: 143031 | C74: г.о. Одинцовский | D74: Аксиньино с. | E74: село | F74: 43А | G74: 0 | H74: ООО "Рузский РО" | I74: =VLOOKUP(A74:A394,'[1]Универсальная выгрузка'!$B$96:$T$22204,19,0) -> 13279
A75: 50008276956 | B75: 143031 | C75: г.о. Одинцовский | D75: Аксиньино с. | E75: село | F75: 33 | G75: 0 | H75: ООО "Рузский РО" | I75: =VLOOKUP(A75:A395,'[1]Универсальная выгрузка'!$B$96:$T$22204,19,0) -> 2507.53
A76: 50008277981 | B76: 143031 | C76: г.о. Одинцовский | D76: Аксиньино с. | E76: село | F76: 14 | G76: 0 | H76: ООО "Рузский РО" | I76: =VLOOKUP(A76:A396,'[1]Универсальная выгрузка'!$B$96:$T$22204,19,0) -> 6578.78
A77: 50008279202 | B77: 143031 | C77: г.о. Одинцовский | D77: Аксиньино с. | E77: село | F77: 15 | G77: 0 | H77: ООО "Рузский РО" | I77: =VLOOKUP(A77:A397,'[1]Универсальная выгрузка'!$B$96:$T$22204,19,0) -> 3219.86
A78: 50008294521 | B78: 143031 | C78: г.о. Одинцовский | D78: Аксиньино с. | E78: село | F78: 104/2 | G78: 0 | H78: ООО "Рузский РО" | I78: =VLOOKUP(A78:A404,'[1]Универсальная выгрузка'!$B$96:$T$22204,19,0) -> 11793.51
A79: 50008299978 | B79: 143031 | C79: г.о. Одинцовский | D79: Аксиньино с. | E79: село | F79: 115 | G79: 0 | H79: ООО "Рузский РО" | I79: =VLOOKUP(A79:A405,'[1]Универсальная выгрузка'!$B$96:$T$22204,19,0) -> 11015
A80: 50008300302 | B80: 143031 | C80: г.о. Одинцовский | D80: Аксиньино с. | E80: село | F80: 0 | G80: ду27/2 | H80: ООО "Рузский РО" | I80: =VLOOKUP(A80:A406,'[1]Универсальная выгрузка'!$B$96:$T$22204,19,0) -> 17492.27
A81: 50008300380 | B81: 143031 | C81: г.о. Одинцовский | D81: Аксиньино с. | E81: село | F81: 16 | G81: 0 | H81: ООО "Рузский РО" | I81: =VLOOKUP(A81:A407,'[1]Универсальная выгрузка'!$B$96:$T$22204,19,0) -> 3797.93
A82: 50008307474 | B82: 143031 | C82: г.о. Одинцовский | D82: Аксиньино с. | E82: село | F82: 12 | G82: 0 | H82: ООО "Рузский РО" | I82: =VLOOKUP(A82:A408,'[1]Универсальная выгрузка'!$B$96:$T$22204,19,0) -> 2328.9
A83: 50008323444 | B83: 143031 | C83: г.о. Одинцовский | D83: Аксиньино с. | E83: село | F83: 46 | G83: 0 | H83: ООО "Рузский РО" | I83: =VLOOKUP(A83:A410,'[1]Универсальная выгрузка'!$B$96:$T$22204,19,0) -> 2750.33
A84: 50008323596 | B84: 143031 | C84: г.о. Одинцовский | D84: Аксиньино с. | E84: село | F84: 55/1 | G84: 0 | H84: ООО "Рузский РО" | I84: =VLOOKUP(A84:A411,'[1]Универсальная выгрузка'!$B$96:$T$22204,19,0) -> 8019.86
A85: 50008325201 | B85: 143031 | C85: г.о. Одинцовский | D85: Аксиньино с. | E85: село | F85: 13 | G85: 0 | H85: ООО "Рузский РО" | I85: =VLOOKUP(A85:A413,'[1]Универсальная выгрузка'!$B$96:$T$22204,19,0) -> 6713.66
A86: 50008330755 | B86: 143031 | C86: г.о. Одинцовский | D86: Аксиньино с. | E86: село | F86: 55 | G86: 0 | H86: ООО "Рузский РО" | I86: =VLOOKUP(A86:A414,'[1]Универсальная выгрузка'!$B$96:$T$22204,19,0) -> 2767.51
A87: 50008330836 | B87: 143031 | C87: г.о. Одинцовский | D87: Аксиньино с. | E87: село | F87: 10 | G87: 0 | H87: ООО "Рузский РО" | I87: =VLOOKUP(A87:A415,'[1]Универсальная выгрузка'!$B$96:$T$22204,19,0) -> 4844.24
A88: 50008338673 | B88: 143031 | C88: г.о. Одинцовский | D88: Аксиньино с. | E88: село | F88: 42 | G88: 0 | H88: ООО "Рузский РО" | I88: =VLOOKUP(A88:A417,'[1]Универсальная выгрузка'!$B$96:$T$22204,19,0) -> 3416.29
A89: 50008338779 | B89: 143031 | C89: г.о. Одинцовский | D89: Аксиньино с. | E89: село | F89: 87 | G89: 0 | H89: ООО "Рузский РО" | I89: =VLOOKUP(A89:A418,'[1]Универсальная выгрузка'!$B$96:$T$22204,19,0) -> 3077.82
A90: 50008339331 | B90: 143031 | C90: г.о. Одинцовский | D90: Аксиньино с. | E90: село | F90: 14А | G90: 0 | H90: ООО "Рузский РО" | I90: =VLOOKUP(A90:A419,'[1]Универсальная выгрузка'!$B$96:$T$22204,19,0) -> 6958.51
A91: 50008340471 | B91: 143031 | C91: г.о. Одинцовский | D91: Аксиньино с. | E91: село | F91: 69 | G91: 0 | H91: ООО "Рузский РО" | I91: =VLOOKUP(A91:A420,'[1]Универсальная выгрузка'!$B$96:$T$22204,19,0) -> 2537.52
A92: 50004170821 | B92: 143057 | C92: г.о. Одинцовский | D92: Андреевское с. | E92: село | F92: 38 | G92: 0 | H92: ООО "Рузский РО" | I92: =VLOOKUP(A92:A424,'[1]Универсальная выгрузка'!$B$96:$T$22204,19,0) -> 6279.79
A93: 50004174590 | B93: 143057 | C93: г.о. Одинцовский | D93: Андреевское с. | E93: село | F93: 43 | G93: к.187 | H93: ООО "Рузский РО" | I93: =VLOOKUP(A93:A425,'[1]Универсальная выгрузка'!$B$96:$T$22204,19,0) -> 6958.51
A94: 50004174640 | B94: 143057 | C94: г.о. Одинцовский | D94: Андреевское с. | E94: село | F94: 43 | G94: д.47 | H94: ООО "Рузский РО" | I94: =VLOOKUP(A94:A426,'[1]Универсальная выгрузка'!$B$96:$T$22204,19,0) -> 6958.51
A95: 50004210520 | B95: 143057 | C95: г.о. Одинцовский | D95: Андреевское с. | E95: село | F95: 23 | G95: 0 | H95: ООО "Рузский РО" | I95: =VLOOKUP(A95:A430,'[1]Универсальная выгрузка'!$B$96:$T$22204,19,0) -> 4419.93
A96: 50004220416 | B96: 143057 | C96: г.о. Одинцовский | D96: Андреевское с. | E96: село | F96: 10А | G96: д.10 | H96: ООО "Рузский РО" | I96: =VLOOKUP(A96:A432,'[1]Универсальная выгрузка'!$B$96:$T$22204,19,0) -> 6958.51
A97: 50004224989 | B97: 143057 | C97: г.о. Одинцовский | D97: Андреевское с. | E97: село | F97: 43 | G97: 0 | H97: ООО "Рузский РО" | I97: =VLOOKUP(A97:A433,'[1]Универсальная выгрузка'!$B$96:$T$22204,19,0) -> 3697.1
A98: 50004253549 | B98: 143057 | C98: г.о. Одинцовский | D98: Андреевское с. | E98: село | F98: 12 | G98: А | H98: ООО "Рузский РО" | I98: =VLOOKUP(A98:A436,'[1]Универсальная выгрузка'!$B$96:$T$22204,19,0) -> 6958.51
A99: 50004293693 | B99: 143057 | C99: г.о. Одинцовский | D99: Андреевское с. | E99: село | F99: 43 | G99: к.1251 | H99: ООО "Рузский РО" | I99: =VLOOKUP(A99:A439,'[1]Универсальная выгрузка'!$B$96:$T$22204,19,0) -> 6958.51
A100: 50004307089 | B100: 143057 | C100: г.о. Одинцовский | D100: Андреевское с. | E100: село | F100: 7 | G100: 0 | H100: ООО "Рузский РО" | I100: =VLOOKUP(A100:A441,'[1]Универсальная выгрузка'!$B$96:$T$22204,19,0) -> 5099.9
A101: 50004330024 | B101: 143057 | C101: г.о. Одинцовский | D101: Андреевское с. | E101: село | F101: 31 | G101: 0 | H101: ООО "Рузский РО" | I101: =VLOOKUP(A101:A444,'[1]Универсальная выгрузка'!$B$96:$T$22204,19,0) -> 6529.82
A102: 50004337020 | B102: 143057 | C102: г.о. Одинцовский | D102: Андреевское с. | E102: село | F102: 34 | G102: 0 | H102: ООО "Рузский РО" | I102: =VLOOKUP(A102:A446,'[1]Универсальная выгрузка'!$B$96:$T$22204,19,0) -> 8440.01
A103: 50004351930 | B103: 143057 | C103: г.о. Одинцовский | D103: Андреевское с. | E103: село | F103: уч.6 | G103: 0 | H103: ООО "Рузский РО" | I103: =VLOOKUP(A103:A447,'[1]Универсальная выгрузка'!$B$96:$T$22204,19,0) -> 2541.04
A104: 50004357080 | B104: 143057 | C104: г.о. Одинцовский | D104: Андреевское с. | E104: село | F104: 20 | G104: 0 | H104: ООО "Рузский РО" | I104: =VLOOKUP(A104:A448,'[1]Универсальная выгрузка'!$B$96:$T$22204,19,0) -> 2550.35
A105: 50004358171 | B105: 143057 | C105: г.о. Одинцовский | D105: Андреевское с. | E105: село | F105: 33 | G105: 0 | H105: ООО "Рузский РО" | I105: =VLOOKUP(A105:A451,'[1]Универсальная выгрузка'!$B$96:$T$22204,19,0) -> 6958.51
A106: 50004359665 | B106: 143057 | C106: г.о. Одинцовский | D106: Андреевское с. | E106: село | F106: 5 | G106: 0 | H106: ООО "Рузский РО" | I106: =VLOOKUP(A106:A452,'[1]Универсальная выгрузка'!$B$96:$T$22204,19,0) -> 3996.97
A107: 50004360406 | B107: 143057 | C107: г.о. Одинцовский | D107: Андреевское с. | E107: село | F107: 43 | G107: к.273 | H107: ООО "Рузский РО" | I107: =VLOOKUP(A107:A453,'[1]Универсальная выгрузка'!$B$96:$T$22204,19,0) -> 6958.51
A108: 50004365764 | B108: 143057 | C108: г.о. Одинцовский | D108: Андреевское с. | E108: село | F108: 27 | G108: 0 | H108: ООО "Рузский РО" | I108: =VLOOKUP(A108:A457,'[1]Универсальная выгрузка'!$B$96:$T$22204,19,0) -> 3539.82
A109: 50004389733 | B109: 143057 | C109: г.о. Одинцовский | D109: Андреевское с. | E109: село | F109: 8 | G109: 0 | H109: ООО "Рузский РО" | I109: =VLOOKUP(A109:A459,'[1]Универсальная выгрузка'!$B$96:$T$22204,19,0) -> 2537.4
A110: 50004175724 | B110: 143055 | C110: г.о. Одинцовский | D110: Ивашково дер. | E110: деревня | F110: уч.12 | G110: 0 | H110: ООО "Рузский РО" | I110: =VLOOKUP(A110:A461,'[1]Универсальная выгрузка'!$B$96:$T$22204,19,0) -> 17717.97
A111: 50004177697 | B111: 143055 | C111: г.о. Одинцовский | D111: Ивашково дер. | E111: деревня | F111: 40 | G111: 0 | H111: ООО "Рузский РО" | I111: =VLOOKUP(A111:A462,'[1]Универсальная выгрузка'!$B$96:$T$22204,19,0) -> 3416.29
A112: 50004184648 | B112: 143055 | C112: г.о. Одинцовский | D112: Ивашково дер. | E112: деревня | F112: 9 | G112: 0 | H112: ООО "Рузский РО" | I112: =VLOOKUP(A112:A463,'[1]Универсальная выгрузка'!$B$96:$T$22204,19,0) -> 6958.51
A113: 50004213465 | B113: 143055 | C113: г.о. Одинцовский | D113: Ивашково дер. | E113: деревня | F113: уч.46 | G113: 0 | H113: ООО "Рузский РО" | I113: =VLOOKUP(A113:A464,'[1]Универсальная выгрузка'!$B$96:$T$22204,19,0) -> 2807.77
A114: 50004227980 | B114: 143055 | C114: г.о. Одинцовский | D114: Ивашково дер. | E114: деревня | F114: 6 | G114: 0 | H114: ООО "Рузский РО" | I114: =VLOOKUP(A114:A465,'[1]Универсальная выгрузка'!$B$96:$T$22204,19,0) -> 6958.51
A115: 50004232605 | B115: 143055 | C115: г.о. Одинцовский | D115: Ивашково дер. | E115: деревня | F115: 7 | G115: 0 | H115: ООО "Рузский РО" | I115: =VLOOKUP(A115:A466,'[1]Универсальная выгрузка'!$B$96:$T$22204,19,0) -> 6958.51
A116: 50004234419 | B116: 143055 | C116: г.о. Одинцовский | D116: Ивашково дер. | E116: деревня | F116: 28 | G116: 0 | H116: ООО "Рузский РО" | I116: =VLOOKUP(A116:A467,'[1]Универсальная выгрузка'!$B$96:$T$22204,19,0) -> 6958.51
A117: 50004240525 | B117: 143055 | C117: г.о. Одинцовский | D117: Ивашково дер. | E117: деревня | F117: 32 | G117: 0 | H117: ООО "Рузский РО" | I117: =VLOOKUP(A117:A468,'[1]Универсальная выгрузка'!$B$96:$T$22204,19,0) -> 6958.51
A118: 50004268640 | B118: 143055 | C118: г.о. Одинцовский | D118: Ивашково дер. | E118: деревня | F118: 8 | G118: 0 | H118: ООО "Рузский РО" | I118: =VLOOKUP(A118:A469,'[1]Универсальная выгрузка'!$B$96:$T$22204,19,0) -> 6958.51
A119: 50004278769 | B119: 143055 | C119: г.о. Одинцовский | D119: Ивашково дер. | E119: деревня | F119: 20 | G119: 0 | H119: ООО "Рузский РО" | I119: =VLOOKUP(A119:A470,'[1]Универсальная выгрузка'!$B$96:$T$22204,19,0) -> 6958.51
A120: 50004290847 | B120: 143055 | C120: г.о. Одинцовский | D120: Ивашково дер. | E120: деревня | F120: уч.10 | G120: 0 | H120: ООО "Рузский РО" | I120: =VLOOKUP(A120:A471,'[1]Универсальная выгрузка'!$B$96:$T$22204,19,0) -> 10684.04
A121: 50004293245 | B121: 143055 | C121: г.о. Одинцовский | D121: Ивашково дер. | E121: деревня | F121: 38 | G121: 0 | H121: ООО "Рузский РО" | I121: =VLOOKUP(A121:A472,'[1]Универсальная выгрузка'!$B$96:$T$22204,19,0) -> 6958.51
A122: 50004305885 | B122: 143055 | C122: г.о. Одинцовский | D122: Ивашково дер. | E122: деревня | F122: уч.7 | G122: 0 | H122: ООО "Рузский РО" | I122: =VLOOKUP(A122:A473,'[1]Универсальная выгрузка'!$B$96:$T$22204,19,0) -> 8022.87
A123: 50004313727 | B123: 143055 | C123: г.о. Одинцовский | D123: Ивашково дер. | E123: деревня | F123: 64 | G123: 0 | H123: ООО "Рузский РО" | I123: =VLOOKUP(A123:A474,'[1]Универсальная выгрузка'!$B$96:$T$22204,19,0) -> 18540.18
A124: 50004328804 | B124: 143055 | C124: г.о. Одинцовский | D124: Ивашково дер. | E124: деревня | F124: 27 | G124: 1 | H124: ООО "Рузский РО" | I124: =VLOOKUP(A124:A475,'[1]Универсальная выгрузка'!$B$96:$T$22204,19,0) -> 6958.51
A125: 50004337340 | B125: 143055 | C125: г.о. Одинцовский | D125: Ивашково дер. | E125: деревня | F125: 28 | G125: 0 | H125: ООО "Рузский РО" | I125: =VLOOKUP(A125:A476,'[1]Универсальная выгрузка'!$B$96:$T$22204,19,0) -> 6958.51
A126: 50004345750 | B126: 143055 | C126: г.о. Одинцовский | D126: Ивашково дер. | E126: деревня | F126: 20 | G126: 0 | H126: ООО "Рузский РО" | I126: =VLOOKUP(A126:A477,'[1]Универсальная выгрузка'!$B$96:$T$22204,19,0) -> 6958.51
A127: 50004352902 | B127: 143055 | C127: г.о. Одинцовский | D127: Ивашково дер. | E127: деревня | F127: 4 | G127: 0 | H127: ООО "Рузский РО" | I127: =VLOOKUP(A127:A478,'[1]Универсальная выгрузка'!$B$96:$T$22204,19,0) -> 6958.51
A128: 50004353367 | B128: 143055 | C128: г.о. Одинцовский | D128: Ивашково дер. | E128: деревня | F128: 22 | G128: 0 | H128: ООО "Рузский РО" | I128: =VLOOKUP(A128:A479,'[1]Универсальная выгрузка'!$B$96:$T$22204,19,0) -> 5079.7
A129: 50004360491 | B129: 143055 | C129: г.о. Одинцовский | D129: Ивашково дер. | E129: деревня | F129: 1 | G129: 0 | H129: ООО "Рузский РО" | I129: =VLOOKUP(A129:A480,'[1]Универсальная выгрузка'!$B$96:$T$22204,19,0) -> 6958.51
A130: 50004361022 | B130: 143055 | C130: г.о. Одинцовский | D130: Ивашково дер. | E130: деревня | F130: 35Б | G130: 0 | H130: ООО "Рузский РО" | I130: =VLOOKUP(A130:A481,'[1]Универсальная выгрузка'!$B$96:$T$22204,19,0) -> 47840.85
A131: 50004363252 | B131: 143055 | C131: г.о. Одинцовский | D131: Ивашково дер. | E131: деревня | F131: 35Б | G131: 0 | H131: ООО "Рузский РО" | I131: =VLOOKUP(A131:A482,'[1]Универсальная выгрузка'!$B$96:$T$22204,19,0) -> 47840.85
A132: 50004371969 | B132: 143055 | C132: г.о. Одинцовский | D132: Ивашково дер. | E132: деревня | F132: 5 | G132: 0 | H132: ООО "Рузский РО" | I132: =VLOOKUP(A132:A483,'[1]Универсальная выгрузка'!$B$96:$T$22204,19,0) -> 6958.51
A133: 50004382752 | B133: 143055 | C133: г.о. Одинцовский | D133: Ивашково дер. | E133: деревня | F133: 10 | G133: 0 | H133: ООО "Рузский РО" | I133: =VLOOKUP(A133:A484,'[1]Универсальная выгрузка'!$B$96:$T$22204,19,0) -> 3457.2
A134: 50004383227 | B134: 143055 | C134: г.о. Одинцовский | D134: Ивашково дер. | E134: деревня | F134: 35 | G134: 0 | H134: ООО "Рузский РО" | I134: =VLOOKUP(A134:A485,'[1]Универсальная выгрузка'!$B$96:$T$22204,19,0) -> 6958.51
A135: 50004203932 | B135: 143057 | C135: г.о. Одинцовский | D135: Иглово дер. | E135: деревня | F135: уч.19 | G135: 0 | H135: ООО "Рузский РО" | I135: =VLOOKUP(A135:A486,'[1]Универсальная выгрузка'!$B$96:$T$22204,19,0) -> 9160.96
A136: 50004204365 | B136: 143057 | C136: г.о. Одинцовский | D136: Иглово дер. | E136: ГП | F136: уч.4 | G136: 0 | H136: ООО "Рузский РО" | I136: =VLOOKUP(A136:A487,'[1]Универсальная выгрузка'!$B$96:$T$22204,19,0) -> 3235.52
A137: 50004228119 | B137: 143057 | C137: г.о. Одинцовский | D137: Иглово дер. | E137: деревня | F137: 8 | G137: 0 | H137: ООО "Рузский РО" | I137: =VLOOKUP(A137:A488,'[1]Универсальная выгрузка'!$B$96:$T$22204,19,0) -> 6958.51
A138: 50004234850 | B138: 143057 | C138: г.о. Одинцовский | D138: Иглово дер. | E138: деревня | F138: 7 | G138: 0 | H138: ООО "Рузский РО" | I138: =VLOOKUP(A138:A489,'[1]Универсальная выгрузка'!$B$96:$T$22204,19,0) -> 6958.51
A139: 50004241590 | B139: 143057 | C139: г.о. Одинцовский | D139: Иглово дер. | E139: деревня | F139: 1 | G139: уч.15 | H139: ООО "Рузский РО" | I139: =VLOOKUP(A139:A490,'[1]Универсальная выгрузка'!$B$96:$T$22204,19,0) -> 6958.51
A140: 50004241688 | B140: 143057 | C140: г.о. Одинцовский | D140: Иглово дер. | E140: деревня | F140: 9 | G140: 0 | H140: ООО "Рузский РО" | I140: =VLOOKUP(A140:A491,'[1]Универсальная выгрузка'!$B$96:$T$22204,19,0) -> 6958.51
A141: 50004248620 | B141: 143057 | C141: г.о. Одинцовский | D141: Иглово дер. | E141: деревня | F141: 18 | G141: 0 | H141: ООО "Рузский РО" | I141: =VLOOKUP(A141:A492,'[1]Универсальная выгрузка'!$B$96:$T$22204,19,0) -> 6958.51
A142: 50004269933 | B142: 143057 | C142: г.о. Одинцовский | D142: Иглово дер. | E142: деревня | F142: 22 | G142: 0 | H142: ООО "Рузский РО" | I142: =VLOOKUP(A142:A493,'[1]Универсальная выгрузка'!$B$96:$T$22204,19,0) -> 6958.51
A143: 50004291752 | B143: 143057 | C143: г.о. Одинцовский | D143: Иглово дер. | E143: деревня | F143: 2 | G143: 0 | H143: ООО "Рузский РО" | I143: =VLOOKUP(A143:A494,'[1]Универсальная выгрузка'!$B$96:$T$22204,19,0) -> 6958.51
A144: 50004299085 | B144: 143057 | C144: г.о. Одинцовский | D144: Иглово дер. | E144: деревня | F144: 3 | G144: 0 | H144: ООО "Рузский РО" | I144: =VLOOKUP(A144:A495,'[1]Универсальная выгрузка'!$B$96:$T$22204,19,0) -> 6958.51
A145: 50004301400 | B145: 143057 | C145: г.о. Одинцовский | D145: Иглово дер. | E145: деревня | F145: 6 | G145: 0 | H145: ООО "Рузский РО" | I145: =VLOOKUP(A145:A496,'[1]Универсальная выгрузка'!$B$96:$T$22204,19,0) -> 4147.45
A146: 50004313269 | B146: 143057 | C146: г.о. Одинцовский | D146: Иглово дер. | E146: деревня | F146: уч.18 | G146: 0 | H146: ООО "Рузский РО" | I146: =VLOOKUP(A146:A497,'[1]Универсальная выгрузка'!$B$96:$T$22204,19,0) -> 14521.92
A147: 50004314400 | B147: 143057 | C147: г.о. Одинцовский | D147: Иглово дер. | E147: деревня | F147: 20 | G147: 0 | H147: ООО "Рузский РО" | I147: =VLOOKUP(A147:A498,'[1]Универсальная выгрузка'!$B$96:$T$22204,19,0) -> 6958.51
A148: 50004345165 | B148: 143057 | C148: г.о. Одинцовский | D148: Иглово дер. | E148: деревня | F148: 12 | G148: 0 | H148: ООО "Рузский РО" | I148: =VLOOKUP(A148:A499,'[1]Универсальная выгрузка'!$B$96:$T$22204,19,0) -> 6958.51
A149: 50004353039 | B149: 143057 | C149: г.о. Одинцовский | D149: Иглово дер. | E149: деревня | F149: 2А | G149: 0 | H149: ООО "Рузский РО" | I149: =VLOOKUP(A149:A500,'[1]Универсальная выгрузка'!$B$96:$T$22204,19,0) -> 5553.68
A150: 50004357266 | B150: 143057 | C150: г.о. Одинцовский | D150: Иглово дер. | E150: деревня | F150: 10 | G150: 0 | H150: ООО "Рузский РО" | I150: =VLOOKUP(A150:A501,'[1]Универсальная выгрузка'!$B$96:$T$22204,19,0) -> 6002.94
A151: 50004358848 | B151: 143057 | C151: г.о. Одинцовский | D151: Иглово дер. | E151: деревня | F151: 15 | G151: 0 | H151: ООО "Рузский РО" | I151: =VLOOKUP(A151:A502,'[1]Универсальная выгрузка'!$B$96:$T$22204,19,0) -> 3031.5
A152: 50004359792 | B152: 143057 | C152: г.о. Одинцовский | D152: Иглово дер. | E152: деревня | F152: 19 | G152: 0 | H152: ООО "Рузский РО" | I152: =VLOOKUP(A152:A503,'[1]Универсальная выгрузка'!$B$96:$T$22204,19,0) -> 6958.51
A153: 50004368236 | B153: 143057 | C153: г.о. Одинцовский | D153: Иглово дер. | E153: деревня | F153: 20 | G153: 0 | H153: ООО "Рузский РО" | I153: =VLOOKUP(A153:A504,'[1]Универсальная выгрузка'!$B$96:$T$22204,19,0) -> 6958.51
A154: 50004373116 | B154: 143057 | C154: г.о. Одинцовский | D154: Иглово дер. | E154: деревня | F154: 10 | G154: 0 | H154: ООО "Рузский РО" | I154: =VLOOKUP(A154:A505,'[1]Универсальная выгрузка'!$B$96:$T$22204,19,0) -> 3343.43
A155: 50004376011 | B155: 143057 | C155: г.о. Одинцовский | D155: Иглово дер. | E155: деревня | F155: 13 | G155: 0 | H155: ООО "Рузский РО" | I155: =VLOOKUP(A155:A506,'[1]Универсальная выгрузка'!$B$96:$T$22204,19,0) -> 855.87
A156: 50004379936 | B156: 143057 | C156: г.о. Одинцовский | D156: Иглово дер. | E156: деревня | F156: 1 | G156: 0 | H156: ООО "Рузский РО" | I156: =VLOOKUP(A156:A507,'[1]Универсальная выгрузка'!$B$96:$T$22204,19,0) -> 6958.51
A157: 50004315241 | B157: 143031 | C157: г.о. Одинцовский | D157: Ларюшино дер. | E157: деревня | F157: 13 | G157: 0 | H157: ООО "Рузский РО" | I157: =VLOOKUP(A157:A508,'[1]Универсальная выгрузка'!$B$96:$T$22204,19,0) -> 6981.99
A158: 50008102149 | B158: 143031 | C158: г.о. Одинцовский | D158: Ларюшино дер. | E158: деревня | F158: 38 | G158: 0 | H158: ООО "Рузский РО" | I158: =VLOOKUP(A158:A509,'[1]Универсальная выгрузка'!$B$96:$T$22204,19,0) -> 6958.51
A159: 50008103262 | B159: 143031 | C159: г.о. Одинцовский | D159: Ларюшино дер. | E159: деревня | F159: 25 | G159: 0 | H159: ООО "Рузский РО" | I159: =VLOOKUP(A159:A510,'[1]Универсальная выгрузка'!$B$96:$T$22204,19,0) -> 2760.74
A160: 50008104026 | B160: 143031 | C160: г.о. Одинцовский | D160: Ларюшино дер. | E160: деревня | F160: уч.26 | G160: 0 | H160: ООО "Рузский РО" | I160: =VLOOKUP(A160:A511,'[1]Универсальная выгрузка'!$B$96:$T$22204,19,0) -> 2497.5
A161: 50008114112 | B161: 143031 | C161: г.о. Одинцовский | D161: Ларюшино дер. | E161: деревня | F161: 1 | G161: 0 | H161: ООО "Рузский РО" | I161: =VLOOKUP(A161:A512,'[1]Универсальная выгрузка'!$B$96:$T$22204,19,0) -> 6958.51
A162: 50008125072 | B162: 143031 | C162: г.о. Одинцовский | D162: Ларюшино дер. | E162: деревня | F162: 4 | G162: 0 | H162: ООО "Рузский РО" | I162: =VLOOKUP(A162:A513,'[1]Универсальная выгрузка'!$B$96:$T$22204,19,0) -> 6958.51
A163: 50008157162 | B163: 143031 | C163: г.о. Одинцовский | D163: Ларюшино дер. | E163: деревня | F163: 21 | G163: 0 | H163: ООО "Рузский РО" | I163: =VLOOKUP(A163:A514,'[1]Универсальная выгрузка'!$B$96:$T$22204,19,0) -> 2530.16
A164: 50008164434 | B164: 143031 | C164: г.о. Одинцовский | D164: Ларюшино дер. | E164: деревня | F164: 16 | G164: 0 | H164: ООО "Рузский РО" | I164: =VLOOKUP(A164:A515,'[1]Универсальная выгрузка'!$B$96:$T$22204,19,0) -> 6958.51
A165: 50008170290 | B165: 143031 | C165: г.о. Одинцовский | D165: Ларюшино дер. | E165: деревня | F165: 64 | G165: 0 | H165: ООО "Рузский РО" | I165: =VLOOKUP(A165:A516,'[1]Универсальная выгрузка'!$B$96:$T$22204,19,0) -> 6958.51
A166: 50008180549 | B166: 143031 | C166: г.о. Одинцовский | D166: Ларюшино дер. | E166: деревня | F166: 1 | G166: 0 | H166: ООО "Рузский РО" | I166: =VLOOKUP(A166:A517,'[1]Универсальная выгрузка'!$B$96:$T$22204,19,0) -> 6958.51
A167: 50008182507 | B167: 143031 | C167: г.о. Одинцовский | D167: Ларюшино дер. | E167: деревня | F167: 50 | G167: 0 | H167: ООО "Рузский РО" | I167: =VLOOKUP(A167:A518,'[1]Универсальная выгрузка'!$B$96:$T$22204,19,0) -> 3717.58
A168: 50008185434 | B168: 143031 | C168: г.о. Одинцовский | D168: Ларюшино дер. | E168: деревня | F168: 22 | G168: 0 | H168: ООО "Рузский РО" | I168: =VLOOKUP(A168:A519,'[1]Универсальная выгрузка'!$B$96:$T$22204,19,0) -> 6958.51
A169: 50008188869 | B169: 143031 | C169: г.о. Одинцовский | D169: Ларюшино дер. | E169: деревня | F169: 68 | G169: 0 | H169: ООО "Рузский РО" | I169: =VLOOKUP(A169:A520,'[1]Универсальная выгрузка'!$B$96:$T$22204,19,0) -> 3041.28
A170: 50008195961 | B170: 143031 | C170: г.о. Одинцовский | D170: Ларюшино дер. | E170: деревня | F170: 16 | G170: 0 | H170: ООО "Рузский РО" | I170: =VLOOKUP(A170:A521,'[1]Универсальная выгрузка'!$B$96:$T$22204,19,0) -> 6958.51
A171: 50008202859 | B171: 143031 | C171: г.о. Одинцовский | D171: Ларюшино дер. | E171: деревня | F171: 2Б-1 | G171: 0 | H171: ООО "Рузский РО" | I171: =VLOOKUP(A171:A522,'[1]Универсальная выгрузка'!$B$96:$T$22204,19,0) -> 15842.21
A172: 50008225052 | B172: 143031 | C172: г.о. Одинцовский | D172: Ларюшино дер. | E172: деревня | F172: 55 | G172: 0 | H172: ООО "Рузский РО" | I172: =VLOOKUP(A172:A523,'[1]Универсальная выгрузка'!$B$96:$T$22204,19,0) -> 6958.51
A173: 50008292771 | B173: 143031 | C173: г.о. Одинцовский | D173: Ларюшино дер. | E173: деревня | F173: 2 | G173: 0 | H173: ООО "Рузский РО" | I173: =VLOOKUP(A173:A526,'[1]Универсальная выгрузка'!$B$96:$T$22204,19,0) -> 4141.52
A174: 50008294169 | B174: 143031 | C174: г.о. Одинцовский | D174: Ларюшино дер. | E174: деревня | F174: уч.3А | G174: 0 | H174: ООО "Рузский РО" | I174: =VLOOKUP(A174:A527,'[1]Универсальная выгрузка'!$B$96:$T$22204,19,0) -> 15332.47
A175: 50008301698 | B175: 143031 | C175: г.о. Одинцовский | D175: Ларюшино дер. | E175: деревня | F175: 6 | G175: 0 | H175: ООО "Рузский РО" | I175: =VLOOKUP(A175:A528,'[1]Универсальная выгрузка'!$B$96:$T$22204,19,0) -> 6958.51
A176: 50008339349 | B176: 143031 | C176: г.о. Одинцовский | D176: Ларюшино дер. | E176: деревня | F176: 27-29 | G176: 0 | H176: ООО "Рузский РО" | I176: =VLOOKUP(A176:A529,'[1]Универсальная выгрузка'!$B$96:$T$22204,19,0) -> 13935.86
A177: 50004168597 | B177: 143056 | C177: г.о. Одинцовский | D177: Новоалександровка дер. | E177: деревня | F177: 5 | G177: 0 | H177: ООО "Рузский РО" | I177: =VLOOKUP(A177:A530,'[1]Универсальная выгрузка'!$B$96:$T$22204,19,0) -> 6958.51
A178: 50004176319 | B178: 143056 | C178: г.о. Одинцовский | D178: Новоалександровка дер. | E178: деревня | F178: 10 | G178: 0 | H178: ООО "Рузский РО" | I178: =VLOOKUP(A178:A531,'[1]Универсальная выгрузка'!$B$96:$T$22204,19,0) -> 6958.51
A179: 50004191606 | B179: 143056 | C179: г.о. Одинцовский | D179: Новоалександровка дер. | E179: деревня | F179: 16 | G179: 0 | H179: ООО "Рузский РО" | I179: =VLOOKUP(A179:A532,'[1]Универсальная выгрузка'!$B$96:$T$22204,19,0) -> 6958.51
A180: 50004191878 | B180: 143056 | C180: г.о. Одинцовский | D180: Новоалександровка дер. | E180: деревня | F180: 8 | G180: 0 | H180: ООО "Рузский РО" | I180: =VLOOKUP(A180:A533,'[1]Универсальная выгрузка'!$B$96:$T$22204,19,0) -> 6958.51
A181: 50004225118 | B181: 143056 | C181: г.о. Одинцовский | D181: Новоалександровка дер. | E181: деревня | F181: 2 | G181: 0 | H181: ООО "Рузский РО" | I181: =VLOOKUP(A181:A534,'[1]Универсальная выгрузка'!$B$96:$T$22204,19,0) -> 6958.51
A182: 50004249207 | B182: 143056 | C182: г.о. Одинцовский | D182: Новоалександровка дер. | E182: деревня | F182: уч.9 | G182: 0 | H182: ООО "Рузский РО" | I182: =VLOOKUP(A182:A535,'[1]Универсальная выгрузка'!$B$96:$T$22204,19,0) -> 3312.95
A183: 50004253820 | B183: 143056 | C183: г.о. Одинцовский | D183: Новоалександровка дер. | E183: деревня | F183: 22 | G183: 0 | H183: ООО "Рузский РО" | I183: =VLOOKUP(A183:A536,'[1]Универсальная выгрузка'!$B$96:$T$22204,19,0) -> 11717.47
A184: 50004261860 | B184: 143056 | C184: г.о. Одинцовский | D184: Новоалександровка дер. | E184: деревня | F184: 9 | G184: 0 | H184: ООО "Рузский РО" | I184: =VLOOKUP(A184:A537,'[1]Универсальная выгрузка'!$B$96:$T$22204,19,0) -> 4535.19
A185: 50004267728 | B185: 143056 | C185: г.о. Одинцовский | D185: Новоалександровка дер. | E185: деревня | F185: 5 | G185: 0 | H185: ООО "Рузский РО" | I185: =VLOOKUP(A185:A538,'[1]Универсальная выгрузка'!$B$96:$T$22204,19,0) -> 6958.51
A186: 50004267911 | B186: 143056 | C186: г.о. Одинцовский | D186: Новоалександровка дер. | E186: деревня | F186: 5б | G186: 0 | H186: ООО "Рузский РО" | I186: =VLOOKUP(A186:A539,'[1]Универсальная выгрузка'!$B$96:$T$22204,19,0) -> 285.59
A187: 50004276306 | B187: 143056 | C187: г.о. Одинцовский | D187: Новоалександровка дер. | E187: деревня | F187: 7 | G187: 0 | H187: ООО "Рузский РО" | I187: =VLOOKUP(A187:A540,'[1]Универсальная выгрузка'!$B$96:$T$22204,19,0) -> 4730.35
A188: 50004278663 | B188: 143056 | C188: г.о. Одинцовский | D188: Новоалександровка дер. | E188: деревня | F188: 8 | G188: 0 | H188: ООО "Рузский РО" | I188: =VLOOKUP(A188:A541,'[1]Универсальная выгрузка'!$B$96:$T$22204,19,0) -> 6958.51
A189: 50004278906 | B189: 143056 | C189: г.о. Одинцовский | D189: Новоалександровка дер. | E189: деревня | F189: 14 | G189: 0 | H189: ООО "Рузский РО" | I189: =VLOOKUP(A189:A542,'[1]Универсальная выгрузка'!$B$96:$T$22204,19,0) -> 6958.51
A190: 50004292121 | B190: 143056 | C190: г.о. Одинцовский | D190: Новоалександровка дер. | E190: деревня | F190: 9 | G190: 0 | H190: ООО "Рузский РО" | I190: =VLOOKUP(A190:A543,'[1]Универсальная выгрузка'!$B$96:$T$22204,19,0) -> 6958.51
A191: 50004328579 | B191: 143056 | C191: г.о. Одинцовский | D191: Новоалександровка дер. | E191: деревня | F191: 6 | G191: 0 | H191: ООО "Рузский РО" | I191: =VLOOKUP(A191:A544,'[1]Универсальная выгрузка'!$B$96:$T$22204,19,0) -> 6958.51
A192: 50004329533 | B192: 143056 | C192: г.о. Одинцовский | D192: Новоалександровка дер. | E192: деревня | F192: 14Б | G192: 0 | H192: ООО "Рузский РО" | I192: =VLOOKUP(A192:A545,'[1]Универсальная выгрузка'!$B$96:$T$22204,19,0) -> 12544.41
A193: 50004338175 | B193: 143056 | C193: г.о. Одинцовский | D193: Новоалександровка дер. | E193: деревня | F193: 4 | G193: 0 | H193: ООО "Рузский РО" | I193: =VLOOKUP(A193:A546,'[1]Универсальная выгрузка'!$B$96:$T$22204,19,0) -> 6958.51
A194: 50004345366 | B194: 143056 | C194: г.о. Одинцовский | D194: Новоалександровка дер. | E194: деревня | F194: 15 | G194: 0 | H194: ООО "Рузский РО" | I194: =VLOOKUP(A194:A547,'[1]Универсальная выгрузка'!$B$96:$T$22204,19,0) -> 6958.51
A195: 50004349709 | B195: 143056 | C195: г.о. Одинцовский | D195: Новоалександровка дер. | E195: деревня | F195: 11 | G195: 0 | H195: ООО "Рузский РО" | I195: =VLOOKUP(A195:A548,'[1]Универсальная выгрузка'!$B$96:$T$22204,19,0) -> 6958.51
A196: 50004360533 | B196: 143056 | C196: г.о. Одинцовский | D196: Новоалександровка дер. | E196: деревня | F196: уч.5/1 | G196: 0 | H196: ООО "Рузский РО" | I196: =VLOOKUP(A196:A549,'[1]Универсальная выгрузка'!$B$96:$T$22204,19,0) -> 12174.57
A197: 50004364400 | B197: 143056 | C197: г.о. Одинцовский | D197: Новоалександровка дер. | E197: деревня | F197: 17 | G197: 0 | H197: ООО "Рузский РО" | I197: =VLOOKUP(A197:A550,'[1]Универсальная выгрузка'!$B$96:$T$22204,19,0) -> 6958.51
A198: 50004367480 | B198: 143056 | C198: г.о. Одинцовский | D198: Новоалександровка дер. | E198: деревня | F198: 11 | G198: 0 | H198: ООО "Рузский РО" | I198: =VLOOKUP(A198:A551,'[1]Универсальная выгрузка'!$B$96:$T$22204,19,0) -> 6958.51
A199: 50004373130 | B199: 143056 | C199: г.о. Одинцовский | D199: Новоалександровка дер. | E199: деревня | F199: 3 | G199: 0 | H199: ООО "Рузский РО" | I199: =VLOOKUP(A199:A552,'[1]Универсальная выгрузка'!$B$96:$T$22204,19,0) -> 6958.51
A200: 50004376117 | B200: 143056 | C200: г.о. Одинцовский | D200: Новоалександровка дер. | E200: деревня | F200: 13 | G200: 0 | H200: ООО "Рузский РО" | I200: =VLOOKUP(A200:A553,'[1]Универсальная выгрузка'!$B$96:$T$22204,19,0) -> 6958.51
... 82 more rows
